fUST/lending_fUST_20250928
["ID","MTS","AMOUNT","RATE_DAILY","PERIOD"]
[388306638,1759068664315,-480.0,0.00036438,9]
[388306639,1759068664325,-480.0,0.00036438,9]
[388306640,1759068664334,-695.93,0.00036438,9]
[388306641,1759068664344,-937.44,0.00036438,9]
[388306642,1759068664354,-480.0,0.00036438,9]
[388306643,1759068664363,-480.0,0.00036438,9]
[388306644,1759068664372,-480.0,0.00036438,9]
[388306645,1759068664381,-480.0,0.00036438,9]
[388306646,1759068664391,-1029.98,0.00036438,9]
[388306647,1759068664400,-480.0,0.00036438,9]
[388306648,1759068664409,-480.0,0.00036438,9]
[388306649,1759068664419,-588.86,0.00036438,9]
[388306650,1759068664427,-480.0,0.00036438,9]
[388306651,1759068664437,-480.0,0.00036438,9]
[388306652,1759068664445,-909.18,0.00036438,9]
[388306653,1759068664454,-480.0,0.00036438,9]
[388306654,1759068664463,-755.1,0.00036438,9]
[388306655,1759068664472,-480.0,0.00036438,9]
[388306656,1759068664481,-480.0,0.00036438,9]
[388306657,1759068664490,-488.76,0.00036438,9]
[388306658,1759068664499,-201.7797818,0.00036438,9]
[388306659,1759068664508,-682.23,0.00036438,9]
[388306660,1759068664518,-480.0,0.00036438,9]
[388306661,1759068664527,-480.0,0.00036438,9]
[388306662,1759068664536,-480.0,0.00036438,9]
[388306663,1759068664545,-480.0,0.00036438,7]
[388306664,1759068664555,-480.0,0.00036438,9]
[388306665,1759068664564,-182.59567664,0.00036438,9]
[388306666,1759068664574,-480.0,0.00036438,9]
[388306667,1759068664583,-929.27,0.00036438,9]
[388306668,1759068664594,-557.42,0.00036438,9]
[388306669,1759068664607,-157.48438367,0.00036438,9]
[388306670,1759068664616,-1236.66,0.00036438,9]
[388306671,1759068664626,-480.0,0.00036438,9]
[388306672,1759068664637,-952.91,0.00036438,9]
[388306673,1759068664647,-480.0,0.00036438,9]
[388306674,1759068664656,-1826.96,0.00036438,9]
[388306675,1759068664666,-480.0,0.00036438,9]
[388306676,1759068664675,-472.38127051,0.00036438,3]
[388306677,1759068664687,-732.29,0.00036438,9]
[388306678,1759068664696,-480.0,0.00036438,9]
[388306679,1759068664706,-686.79,0.00036438,9]
[388306680,1759068664715,-480.0,0.00036438,9]
[388306681,1759068664724,-480.0,0.00036438,9]
[388306682,1759068664733,-480.0,0.00036438,9]
[388306683,1759068664742,-480.0,0.00036438,9]
[388306684,1759068664751,-486.7,0.00036438,9]
[388306685,1759068664760,-480.0,0.00036438,9]
[388306686,1759068664769,-480.0,0.00036438,9]
[388306687,1759068664778,-480.0,0.00036438,9]
[388306688,1759068664787,-480.0,0.00036438,9]
[388306689,1759068664796,-480.0,0.00036438,9]
[388306690,1759068664805,-480.0,0.00036438,9]
[388306691,1759068664814,-480.0,0.00036438,9]
[388306692,1759068664825,-753.55,0.00036438,9]
[388306693,1759068664834,-1094.08,0.00036438,9]
[388306694,1759068664843,-480.0,0.00036438,9]
[388306695,1759068664851,-480.0,0.00036438,9]
[388306696,1759068664861,-480.0,0.00036438,7]
[388306697,1759068664872,-790.51,0.00036438,9]
[388306698,1759068664881,-480.0,0.00036438,9]
[388306699,1759068664890,-922.3,0.00036438,9]
[388306700,1759068664900,-480.0,0.00036438,9]
[388306701,1759068664909,-484.46,0.00036438,9]
[388306702,1759068664918,-1023.9,0.00036438,9]
[388306703,1759068664928,-588.86,0.00036438,9]
[388306704,1759068664937,-480.0,0.00036438,9]
[388306705,1759068664947,-3664.67,0.00036438,9]
[388306706,1759068664957,-1137.49,0.00036438,9]
[388306707,1759068664966,-3664.67,0.00036438,9]
[388306708,1759068664976,-880.52,0.00036438,9]
[388306709,1759068664985,-480.0,0.00036438,9]
[388306710,1759068664994,-1004.71,0.00036438,9]
[388306711,1759068665004,-545.01,0.00036438,9]
[388306712,1759068665014,-666.41,0.00036438,9]
[388306713,1759068665023,-480.0,0.00036438,9]
[388306714,1759068665033,-480.0,0.00036438,9]
[388306715,1759068665042,-480.0,0.00036438,9]
[388306716,1759068665051,-572.46,0.00036438,9]
[388306717,1759068665060,-480.0,0.00036438,9]
[388306718,1759068665071,-977.1,0.00036438,9]
[388306719,1759068665080,-785.61,0.00036438,9]
[388306720,1759068665089,-480.0,0.00036438,9]
[388306721,1759068665098,-480.0,0.00036438,9]
[388306722,1759068665108,-648.41,0.00036438,9]
[388306723,1759068665118,-480.0,0.00036438,9]
[388306724,1759068665127,-480.0,0.00036438,9]
[388306725,1759068665136,-968.64,0.00036438,9]
[388306726,1759068665145,-928.28,0.00036438,9]
[388306727,1759068665154,-480.0,0.00036438,9]
[388306728,1759068665163,-853.18,0.00036438,9]
[388306729,1759068665173,-480.0,0.00036438,9]
[388306730,1759068665182,-537.80239252,0.00036438,9]
[388306731,1759068665191,-665.05,0.00036438,9]
[388306732,1759068665200,-1241.38,0.00036438,9]
[388306733,1759068665210,-552.11,0.00036438,9]
[388306734,1759068665219,-480.0,0.00036438,9]
[388306735,1759068665228,-1103.08,0.00036438,9]
[388306736,1759068665237,-3083.2,0.00036438,9]
[388306737,1759068665247,-480.0,0.00036438,9]
[388306738,1759068665257,-564.29,0.00036438,9]
[388306739,1759068665266,-480.0,0.00036438,9]
[388306740,1759068665275,-480.0,0.00036438,9]
[388306741,1759068665283,-1141.94,0.00036438,9]
[388306742,1759068665293,-480.0,0.00036438,9]
[388306743,1759068665302,-480.0,0.00036438,9]
[388306744,1759068665312,-1605.71,0.00036438,9]
[388306745,1759068665323,-480.0,0.00036438,9]
[388306746,1759068665332,-466.79100405,0.00036438,9]
[388306747,1759068665342,-261.9011164,0.00036438,9]
[388306748,1759068665352,-498.14,0.00036438,9]
[388306749,1759068665361,-714.51,0.00036438,9]
[388306750,1759068665496,-1075.99,0.00036438,9]
[388306751,1759068665507,-1023.31,0.00036438,9]
[388306752,1759068665515,-480.0,0.00036438,9]
[388306753,1759068665525,-618.74,0.00036438,9]
[388306754,1759068665534,-480.0,0.00036438,9]
[388306755,1759068665543,-480.0,0.00036438,9]
[388306756,1759068665552,-480.0,0.00036438,9]
[388306757,1759068665562,-480.0,0.00036438,9]
[388306758,1759068665572,-754.29,0.00036438,9]
[388306759,1759068665582,-480.0,0.00036438,9]
[388306760,1759068665592,-480.0,0.00036438,9]
[388306761,1759068665601,-480.0,0.00036438,9]
[388306762,1759068665611,-845.64,0.00036438,9]
[388306763,1759068665620,-480.0,0.00036438,9]
[388306764,1759068665629,-975.02,0.00036438,9]
[388306765,1759068665639,-884.24,0.00036438,9]
[388306766,1759068665649,-637.7,0.00036438,9]
[388306767,1759068665659,-1118.16,0.00036438,9]
[388306768,1759068665668,-765.23,0.00036438,9]
[388306769,1759068665677,-480.0,0.00036438,9]
[388306770,1759068665687,-480.0,0.00036438,9]
[388306771,1759068665696,-596.33,0.00036438,9]
[388306772,1759068665705,-843.09,0.00036438,9]
[388306773,1759068665715,-914.5,0.00036438,9]
[388306774,1759068665724,-843.73,0.00036438,9]
[388306775,1759068665733,-979.56,0.00036438,9]
[388306776,1759068665742,-2040.62,0.00036438,9]
[388306777,1759068665751,-846.09,0.00036438,9]
[388306778,1759068665760,-480.0,0.00036438,9]
[388306779,1759068665769,-1028.35,0.00036438,9]
[388306780,1759068665778,-480.0,0.00036438,9]
[388306781,1759068665787,-480.0,0.00036438,9]
[388306782,1759068665796,-1744.06,0.00036438,9]
[388306783,1759068665806,-655.99,0.00036438,9]
[388306784,1759068665816,-480.0,0.00036438,9]
[388306785,1759068665826,-1073.98,0.00036438,9]
[388306786,1759068665836,-658.99,0.00036438,9]
[388306787,1759068665846,-480.0,0.00036438,9]
[388306788,1759068665855,-480.0,0.00036438,9]
[388306789,1759068665864,-480.0,0.00036438,9]
[388306790,1759068665873,-539.38,0.00036438,9]
[388306791,1759068665882,-480.0,0.00036438,9]
[388306792,1759068665891,-798.9,0.00036438,9]
[388306793,1759068665899,-480.0,0.00036438,9]
[388306794,1759068665908,-480.0,0.00036438,9]
[388306795,1759068665917,-868.96,0.00036438,9]
[388306796,1759068665926,-480.0,0.00036438,9]
[388306797,1759068665936,-827.3,0.00036438,9]
[388306798,1759068665947,-1065.4,0.00036438,9]
[388306799,1759068665956,-480.0,0.00036438,9]
[388306800,1759068665964,-2146.47,0.00036438,9]
[388306801,1759068665973,-480.0,0.00036438,9]
[388306802,1759068665983,-855.97,0.00036438,9]
[388306803,1759068665992,-480.0,0.00036438,9]
[388306804,1759068666001,-480.0,0.00036438,9]
[388306805,1759068666010,-500.912318,0.00036438,9]
[388306806,1759068666019,-343.47582125,0.00036438,9]
[388306807,1759068666029,-1005.89,0.00036438,9]
[388306808,1759068666038,-597.94,0.00036438,9]
[388306809,1759068666047,-480.0,0.00036438,9]
[388306810,1759068666056,-480.0,0.00036438,9]
[388306811,1759068666065,-480.0,0.00036438,9]
[388306812,1759068666074,-492.57,0.00036438,9]
[388306813,1759068666083,-1151.05,0.00036438,9]
[388306814,1759068666093,-480.0,0.00036438,9]
[388306815,1759068666102,-549.75168151,0.00036438,9]
[388306816,1759068666111,-480.0,0.00036438,9]
[388306817,1759068666121,-1081.31,0.00036438,9]
[388306818,1759068666130,-480.0,0.00036438,9]
[388306819,1759068666139,-480.0,0.00036438,9]
[388306820,1759068666148,-480.0,0.00036438,9]
[388306821,1759068666158,-480.0,0.00036438,9]
[388306822,1759068666167,-480.0,0.00036438,9]
[388306823,1759068666176,-480.0,0.00036438,9]
[388306824,1759068666184,-480.0,0.00036438,7]
[388306825,1759068666193,-480.0,0.00036438,9]
[388306826,1759068666202,-1231.25,0.00036438,9]
[388306827,1759068666212,-644.83,0.00036438,9]
[388306828,1759068666221,-925.44,0.00036438,9]
[388306829,1759068666231,-480.0,0.00036438,9]
[388306830,1759068666240,-480.0,0.00036438,9]
[388306831,1759068666250,-480.0,0.00036438,9]
[388306832,1759068666259,-480.0,0.00036438,9]
[388306833,1759068666268,-1159.23,0.00036438,9]
[388306834,1759068666277,-4831.56,0.00036438,9]
[388306835,1759068666286,-480.0,0.00036438,9]
[388306836,1759068666296,-480.0,0.00036438,9]
[388306837,1759068666305,-500.0,0.00036438,9]
[388306838,1759068666313,-480.0,0.00036438,9]
[388306839,1759068666323,-535.63,0.00036438,9]
[388306840,1759068666332,-1182.78,0.00036438,9]
[388306841,1759068666342,-480.0,0.00036438,9]
[388306842,1759068666351,-480.0,0.00036438,9]
[388306843,1759068666360,-480.0,0.00036438,9]
[388306844,1759068666370,-480.0,0.00036438,9]
[388306845,1759068666380,-493.99479039,0.00036438,9]
[388306846,1759068666390,-524.55,0.00036438,9]
[388306847,1759068666399,-585.91,0.00036438,9]
[388306848,1759068666408,-641.51,0.00036438,9]
[388306849,1759068666417,-480.0,0.00036438,9]
[388306850,1759068666426,-480.0,0.00036438,9]
[388306851,1759068666435,-480.0,0.00036438,9]
[388306852,1759068666445,-240.4,0.00036438,9]
[388306853,1759068666455,-1101.93,0.00036438,9]
[388306854,1759068666464,-480.0,0.00036438,9]
[388306855,1759068666472,-897.92,0.00036438,9]
[388306856,1759068666480,-480.0,0.00036438,9]
[388306857,1759068666488,-480.0,0.00036438,9]
[388306858,1759068666497,-480.0,0.00036438,9]
[388306859,1759068666506,-890.13,0.00036438,9]
[388306860,1759068666516,-3211.64,0.00036438,9]
[388306861,1759068666525,-480.0,0.00036438,9]
[388306862,1759068666534,-881.9,0.00036438,9]
[388306863,1759068666543,-480.0,0.00036438,9]
[388306864,1759068666553,-480.0,0.00036438,9]
[388306865,1759068666563,-752.47,0.00036438,9]
[388306866,1759068666573,-480.0,0.00036438,9]
[388306867,1759068666583,-2089.22,0.00036438,9]
[388306868,1759068666592,-908.25,0.00036438,9]
[388306869,1759068666606,-480.0,0.00036438,9]
[388306870,1759068666615,-972.07,0.00036438,9]
[388306871,1759068666624,-480.0,0.00036438,9]
[388306872,1759068666633,-18376.28,0.00036438,9]
[388306873,1759068666643,-516.15859544,0.00036438,9]
[388306874,1759068666653,-504.46,0.00036438,9]
[388306875,1759068666662,-895.65,0.00036438,9]
[388306876,1759068666672,-1810.76,0.00036438,9]
[388306877,1759068666682,-480.0,0.00036438,9]
[388306878,1759068666692,-480.0,0.00036438,9]
[388306879,1759068666701,-615.32,0.00036438,9]
[388306880,1759068666710,-480.0,0.00036438,9]
[388306881,1759068666720,-913.52,0.00036438,9]
[388306882,1759068666728,-480.0,0.00036438,9]
[388306883,1759068666737,-480.0,0.00036438,9]
[388306884,1759068666747,-1069.24,0.00036438,9]
[388306885,1759068666756,-480.0,0.00036438,9]
[388306886,1759068666765,-575.56,0.00036438,9]
[388306887,1759068666774,-480.0,0.00036438,9]
[388306888,1759068666783,-1178.53,0.00036438,9]
[388306889,1759068666793,-1129.25,0.00036438,9]
[388306890,1759068666802,-480.0,0.00036438,9]
[388306891,1759068666811,-480.0,0.00036438,9]
[388306892,1759068666820,-1632.84,0.00036438,9]
[388306893,1759068666830,-545.66,0.00036438,9]
[388306894,1759068666839,-480.0,0.00036438,9]
[388306895,1759068666848,-480.0,0.00036438,9]
[388306896,1759068666856,-480.0,0.00036438,9]
[388306897,1759068666865,-480.0,0.00036438,9]
[388306898,1759068666873,-480.0,0.00036438,9]
[388306899,1759068666883,-1000.65,0.00036438,9]
[388306900,1759068666892,-480.0,0.00036438,9]
[388306901,1759068666903,-500.0,0.00036438,9]
[388306902,1759068666913,-810.47,0.00036438,9]
[388306903,1759068666921,-480.0,0.00036438,9]
[388306904,1759068666930,-480.0,0.00036438,9]
[388306905,1759068666939,-633.61,0.00036438,9]
[388306906,1759068666948,-559.58,0.00036438,9]
[388306907,1759068666957,-448.46244551,0.00036438,9]
[388306908,1759068666966,-2221.01,0.00036438,9]
[388306909,1759068666975,-1736.84,0.00036438,9]
[388306910,1759068666984,-902.59,0.00036438,9]
[388306911,1759068666992,-615.80219978,0.00036438,9]
[388306912,1759068667001,-4334.24,0.00036438,9]
[388306913,1759068667011,-269.73135614,0.00036438,9]
[388306914,1759068667020,-480.0,0.00036438,9]
[388306915,1759068667030,-950.0,0.00036438,9]
[388306916,1759068667039,-480.0,0.00036438,9]
[388306917,1759068667048,-480.0,0.00036438,9]
[388306918,1759068667057,-900.91,0.00036438,9]
[388306919,1759068667067,-480.0,0.00036438,9]
[388306920,1759068667077,-480.0,0.00036438,9]
[388306921,1759068667087,-480.0,0.00036438,9]
[388306922,1759068667096,-480.0,0.00036438,9]
[388306923,1759068667106,-592.75,0.00036438,9]
[388306924,1759068667115,-480.0,0.00036438,9]
[388306925,1759068667124,-908.6,0.00036438,9]
[388306926,1759068667133,-578.44,0.00036438,9]
[388306927,1759068667142,-480.0,0.00036438,9]
[388306928,1759068667151,-480.0,0.00036438,9]
[388306929,1759068667161,-480.0,0.00036438,9]
[388306930,1759068667170,-480.0,0.00036438,9]
[388306931,1759068667179,-1015.55,0.00036438,9]
[388306932,1759068667188,-480.0,0.00036438,9]
[388306933,1759068667197,-480.0,0.00036438,9]
[388306934,1759068667206,-480.0,0.00036438,9]
[388306935,1759068667215,-617.62,0.00036438,9]
[388306936,1759068667225,-781.98,0.00036438,9]
[388306937,1759068667233,-544.27,0.00036438,9]
[388306938,1759068667243,-418.4501889,0.00036438,9]
[388306939,1759068667252,-1425.07,0.00036438,9]
[388306940,1759068667261,-480.0,0.00036438,9]
[388306941,1759068667270,-2525.32,0.00036438,9]
[388306942,1759068667280,-480.0,0.00036438,9]
[388306943,1759068667289,-3612.7,0.00036438,9]
[388306944,1759068667299,-480.0,0.00036438,9]
[388306945,1759068667308,-1795.28,0.00036438,9]
[388306946,1759068667318,-591.42,0.00036438,9]
[388306947,1759068667328,-2166.38,0.00036438,9]
[388306948,1759068667337,-880.11,0.00036438,9]
[388306949,1759068667346,-593.05,0.00036438,9]
[388306950,1759068667356,-1360.5,0.00036438,9]
[388306951,1759068667365,-781.78,0.00036438,9]
[388306952,1759068667376,-480.0,0.00036438,9]
[388306953,1759068667386,-480.0,0.00036438,9]
[388306954,1759068667396,-577.93609985,0.00036438,9]
[388306955,1759068667407,-480.0,0.00036438,9]
[388306956,1759068667419,-480.0,0.00036438,9]
[388306957,1759068667428,-480.0,0.00036438,9]
[388306958,1759068667438,-994.78,0.00036438,9]
[388306959,1759068667447,-169.22431045,0.00036438,9]
[388306960,1759068667457,-1064.57,0.00036438,9]
[388306961,1759068667466,-514.13,0.00036438,9]
[388306962,1759068667476,-776.16,0.00036438,9]
[388306963,1759068667489,-480.0,0.00036438,9]
[388306964,1759068667498,-767.26,0.00036438,9]
[388306965,1759068667508,-480.0,0.00036438,9]
[388306966,1759068667517,-2844.2,0.00036438,9]
[388306967,1759068667526,-932.54,0.00036438,9]
[388306968,1759068667536,-1149.59,0.00036438,9]
[388306969,1759068667545,-847.08,0.00036438,9]
[388306970,1759068667554,-1150.88,0.00036438,9]
[388306971,1759068667563,-480.0,0.00036438,9]
[388306972,1759068667695,-480.0,0.00036438,9]
[388306973,1759068667704,-480.0,0.00036438,9]
[388306974,1759068667714,-4550.13,0.00036438,9]
[388306975,1759068667723,-822.61,0.00036438,9]
[388306976,1759068667732,-480.0,0.00036438,9]
[388306977,1759068667741,-1355.51,0.00036438,9]
[388306978,1759068667751,-480.0,0.00036438,9]
[388306979,1759068667760,-480.0,0.00036438,9]
[388306980,1759068667768,-748.06,0.00036438,9]
[388306981,1759068667778,-480.0,0.00036438,9]
[388306982,1759068667787,-480.0,0.00036438,9]
[388306983,1759068667797,-231.23561455,0.00036438,9]
[388306984,1759068667806,-1247.62,0.00036438,9]
[388306985,1759068667815,-480.0,0.00036438,7]
[388306986,1759068667825,-1295.05,0.00036438,9]
[388306987,1759068667833,-524.7,0.00036438,9]
[388306988,1759068667842,-646.9,0.00036438,9]
[388306989,1759068667851,-6149.46,0.00036438,9]
[388306990,1759068667860,-649.02,0.00036438,9]
[388306991,1759068667869,-480.0,0.00036438,9]
[388306992,1759068667878,-674.87,0.00036438,9]
[388306993,1759068667887,-1066.65,0.00036438,9]
[388306994,1759068667896,-3244.73,0.00036438,9]
[388306995,1759068667906,-688.02,0.00036438,9]
[388306996,1759068667914,-1372.82,0.00036438,9]
[388306997,1759068667926,-1154.48,0.00036438,9]
[388306998,1759068667934,-480.0,0.00036438,9]
[388306999,1759068667943,-2424.55,0.00036438,9]
[388307000,1759068667952,-1039.76,0.00036438,9]
[388307001,1759068667962,-480.0,0.00036438,9]
[388307002,1759068667971,-2399.65,0.00036438,9]
[388307003,1759068667981,-480.0,0.00036438,9]
[388307004,1759068667990,-1083.19,0.00036438,9]
[388307005,1759068667999,-480.0,0.00036438,9]
[388307006,1759068668008,-1246.35,0.00036438,9]
[388307007,1759068668018,-2936.2,0.00036438,9]
[388307008,1759068668027,-1554.9,0.00036438,9]
[388307009,1759068668036,-829.45,0.00036438,9]
[388307010,1759068668046,-501.96,0.00036438,9]
[388307011,1759068668056,-4572.54,0.00036438,9]
[388307012,1759068668065,-480.0,0.00036438,9]
[388307013,1759068668075,-773.93,0.00036438,9]
[388307014,1759068668085,-480.0,0.00036438,9]
[388307015,1759068668095,-1335.65,0.00036438,9]
[388307016,1759068668104,-480.0,0.00036438,9]
[388307017,1759068668113,-480.0,0.00036438,9]
[388307018,1759068668122,-696.72,0.00036438,9]
[388307019,1759068668131,-168.88002301,0.00036438,9]
[388307020,1759068668141,-9730.87,0.00036438,9]
[388307021,1759068668150,-2754.5,0.00036438,9]
[388307022,1759068668161,-835.68,0.00036438,9]
[388307023,1759068668172,-631.39,0.00036438,9]
[388307024,1759068668182,-631.39,0.00036438,9]
[388307025,1759068668191,-480.0,0.00036438,9]
[388307026,1759068668200,-480.0,0.00036438,9]
[388307027,1759068668210,-480.0,0.00036438,9]
[388307028,1759068668220,-480.0,0.00036438,9]
[388307029,1759068668229,-1864.81,0.00036438,9]
[388307030,1759068668239,-1802.9,0.00036438,9]
[388307031,1759068668249,-712.34,0.00036438,9]
[388307032,1759068668259,-874.19,0.00036438,9]
[388307033,1759068668268,-480.0,0.00036438,9]
[388307034,1759068668278,-659.59,0.00036438,9]
[388307035,1759068668288,-993.2,0.00036438,9]
[388307036,1759068668297,-480.0,0.00036438,9]
[388307037,1759068668307,-5121.88,0.00036438,9]
[388307038,1759068668317,-480.0,0.00036438,9]
[388307039,1759068668327,-480.0,0.00036438,9]
[388307040,1759068668337,-1482.23,0.00036438,9]
[388307041,1759068668348,-480.0,0.00036438,9]
[388307042,1759068668357,-348.68563841,0.00036438,9]
[388307043,1759068668367,-722.48,0.00036438,9]
[388307044,1759068668377,-5174.09,0.00036438,9]
[388307045,1759068668387,-1892.82,0.00036438,9]
[388307046,1759068668397,-480.0,0.00036438,9]
[388307047,1759068668407,-1028.73,0.00036438,9]
[388307048,1759068668417,-480.0,0.00036438,9]
[388307049,1759068668427,-480.0,0.00036438,9]
[388307050,1759068668437,-480.0,0.00036438,9]
[388307051,1759068668447,-480.0,0.00036438,9]
[388307052,1759068668456,-480.0,0.00036438,9]
[388307053,1759068668466,-670.17,0.00036438,9]
[388307054,1759068668475,-1199.0,0.00036438,9]
[388307055,1759068668485,-958.01,0.00036438,9]
[388307056,1759068668494,-854.57,0.00036438,9]
[388307057,1759068668503,-1000.0,0.00036438,9]
[388307058,1759068668513,-480.0,0.00036438,9]
[388307059,1759068668523,-480.0,0.00036438,9]
[388307060,1759068668533,-1226.05,0.00036438,9]
[388307061,1759068668542,-480.0,0.00036438,9]
[388307062,1759068668551,-677.52,0.00036438,9]
[388307063,1759068668561,-1781.81,0.00036438,9]
[388307064,1759068668570,-480.0,0.00036438,9]
[388307065,1759068668580,-480.0,0.00036438,9]
[388307066,1759068668589,-1475.03,0.00036438,9]
[388307067,1759068668602,-1986.35,0.00036438,9]
[388307068,1759068668614,-1024.67,0.00036438,9]
[388307069,1759068668624,-480.0,0.00036438,9]
[388307070,1759068668634,-480.0,0.00036438,9]
[388307071,1759068668646,-480.0,0.00036438,9]
[388307072,1759068668656,-2224.04,0.00036438,9]
[388307073,1759068668666,-480.0,0.00036438,9]
[388307074,1759068668677,-1899.47,0.00036438,9]
[388307075,1759068668692,-480.0,0.00036438,9]
[388307076,1759068668702,-480.0,0.00036438,9]
[388307077,1759068668711,-4230.19,0.00036438,9]
[388307078,1759068668721,-480.0,0.00036438,9]
[388307079,1759068668731,-480.0,0.00036438,9]
[388307080,1759068668741,-2625.78,0.00036438,9]
[388307081,1759068668751,-480.0,0.00036438,9]
[388307082,1759068668760,-480.0,0.00036438,9]
[388307083,1759068668770,-1701.51,0.00036438,9]
[388307084,1759068668780,-555.63,0.00036438,9]
[388307085,1759068668790,-4315.32,0.00036438,9]
[388307086,1759068668800,-766.72,0.00036438,9]
[388307087,1759068668809,-513.38,0.00036438,9]
[388307088,1759068668819,-2676.22,0.00036438,9]
[388307089,1759068668829,-3680.23,0.00036438,9]
[388307090,1759068668838,-480.0,0.00036438,9]
[388307091,1759068668848,-179.71061139,0.00036438,9]
[388307092,1759068668857,-480.0,0.00036438,9]
[388307093,1759068668867,-480.0,0.00036438,9]
[388307094,1759068668877,-1199.17,0.00036438,9]
[388307095,1759068668886,-480.0,0.00036438,9]
[388307096,1759068668897,-1096.04,0.00036438,9]
[388307097,1759068668907,-669.82,0.00036438,9]
[388307098,1759068668917,-480.0,0.00036438,9]
[388307099,1759068668927,-480.0,0.00036438,9]
[388307100,1759068668936,-550.1,0.00036438,9]
[388307101,1759068668947,-480.0,0.00036438,9]
[388307102,1759068668956,-5771.08,0.00036438,9]
[388307103,1759068668966,-480.0,0.00036438,9]
[388307104,1759068668976,-1116.74,0.00036438,9]
[388307105,1759068668985,-480.0,0.00036438,9]
[388307106,1759068668995,-1030.32,0.00036438,9]
[388307107,1759068669005,-719.19,0.00036438,9]
[388307108,1759068669015,-480.0,0.00036438,9]
[388307109,1759068669025,-941.46,0.00036438,9]
[388307110,1759068669035,-902.24,0.00036438,9]
[388307111,1759068669045,-9162.48,0.00036438,9]
[388307112,1759068669055,-480.0,0.00036438,9]
[388307113,1759068669065,-480.0,0.00036438,9]
[388307114,1759068669075,-3202.49,0.00036438,9]
[388307115,1759068669085,-480.0,0.00036438,9]
[388307116,1759068669095,-480.0,0.00036438,9]
[388307117,1759068669105,-480.0,0.00036438,9]
[388307118,1759068669115,-480.0,0.00036438,9]
[388307119,1759068669126,-480.0,0.00036438,9]
[388307120,1759068669136,-589.55796307,0.00036438,9]
[388307121,1759068669146,-396.31714626,0.00036438,9]
[388307122,1759068669156,-480.0,0.00036438,9]
[388307123,1759068669166,-4051.83,0.00036438,9]
[388307124,1759068669176,-1094.06,0.00036438,9]
[388307125,1759068669186,-480.0,0.00036438,9]
[388307126,1759068669196,-1909.08,0.00036438,9]
[388307127,1759068669206,-800.84,0.00036438,9]
[388307128,1759068669217,-402.50792916,0.00036438,9]
[388307129,1759068669227,-3848.32,0.00036438,9]
[388307130,1759068669237,-480.0,0.00036438,9]
[388307131,1759068669247,-613.52,0.00036438,9]
[388307132,1759068669258,-1482.22,0.00036438,9]
[388307133,1759068669268,-1451.08,0.00036438,9]
[388307134,1759068669278,-480.0,0.00036438,9]
[388307135,1759068669288,-1070.79,0.00036438,9]
[388307136,1759068669297,-996.79,0.00036438,9]
[388307137,1759068669307,-480.0,0.00036438,9]